bitfinex/quotes_BTCUSD_20260307
["timestamp","ask_amount","ask_price","bid_price","bid_amount"]
[1772927221460,0.03361717,67262.0,67258.0,0.0003705]
[1772927221656,0.03361717,67260.0,67252.0,0.00012]
[1772927221857,0.03361717,67260.0,67253.0,0.00148]
[1772927223283,0.10795573,67260.0,67254.0,0.00148]
[1772927223980,0.10795573,67260.0,67255.0,0.00148]
[1772927224283,0.10795573,67260.0,67258.0,0.0002]
[1772927225179,0.07433856,67260.0,67258.0,0.0002]
[1772927225680,0.07533856,67260.0,67258.0,0.0002]
[1772927225892,0.10741699,67260.0,67258.0,0.0002]
[1772927226981,0.10741699,67260.0,67256.0,0.00148]
[1772927227206,0.07533856,67260.0,67256.0,0.00148]
[1772927227865,0.07433856,67260.0,67256.0,0.00148]
[1772927229011,0.00115536,67259.0,67256.0,0.00148]
[1772927229393,0.00115536,67259.0,67257.0,0.00015]
[1772927229883,0.07434059,67258.0,67253.0,0.00148]
[1772927230282,0.07434059,67258.0,67252.0,0.00012]
[1772927230474,0.07434059,67258.0,67254.0,0.00148]
[1772927231126,0.07434059,67258.0,67255.0,0.00148]
[1772927231327,0.07434059,67258.0,67256.0,0.0002]
[1772927231933,0.03207843,67257.0,67256.0,0.0002]
[1772927232111,0.03207843,67257.0,67252.0,0.00012]
[1772927232533,0.03207843,67257.0,67253.0,0.00148]
[1772927232756,0.03207843,67257.0,67252.0,0.00012]
[1772927232889,0.03207843,67257.0,67252.0,0.0016]
[1772927234311,0.10642094,67257.0,67252.0,0.0016]
[1772927235106,0.1075763,67257.0,67252.0,0.0016]
[1772927235930,0.07549787,67257.0,67252.0,0.0016]
[1772927236143,0.03207843,67256.0,67252.0,0.0016]
[1772927236572,0.10642133,67256.0,67252.0,0.0016]
[1772927236873,0.10642133,67256.0,67252.0,0.00012]
[1772927240753,0.10642133,67256.0,67252.0,0.00032]
[1772927241682,0.00115536,67255.0,67252.0,0.00032]
[1772927242058,0.05436523,67257.0,67253.0,0.01759799]
[1772927242255,0.03207843,67263.0,67253.0,0.01759799]
[1772927242256,0.00022001,67264.0,67254.0,0.01759799]
[1772927242475,0.07455456,67264.0,67254.0,0.01759799]
[1772927246311,0.07455456,67264.0,67254.0,0.091943]
[1772927256622,0.07455456,67264.0,67254.0,0.01759799]
[1772927256827,0.10902274,67264.0,67253.0,0.00148]
[1772927257163,0.10902274,67264.0,67253.0,0.07582589]
[1772927258601,0.03446818,67263.0,67253.0,0.07582589]
[1772927260002,0.07433617,67262.0,67253.0,0.07582589]
[1772927263918,0.07433617,67262.0,67253.0,0.07602589]
[1772927264315,0.07433617,67262.0,67253.0,0.00168]
[1772927264701,0.03446818,67261.0,67253.0,0.00168]
[1772927265826,0.10880598,67261.0,67253.0,0.07602602]
[1772927276330,0.07433521,67263.0,67253.0,0.07602602]
[1772927276558,0.00022001,67264.0,67254.0,0.01819248]
[1772927278238,0.00022001,67264.0,67255.0,0.07434391]
[1772927278451,0.00022001,67264.0,67256.0,0.01819248]
[1772927280231,0.07454515,67272.0,67257.0,0.0743417]
[1772927280433,0.07432402,67273.0,67259.0,0.01819248]
[1772927280631,0.07432402,67273.0,67261.0,0.01819248]
[1772927282314,0.07432402,67275.0,67263.0,0.01710757]
[1772927282507,0.0743207,67276.0,67263.0,0.01710757]
[1772927282876,0.07441588,67276.0,67263.0,0.01710757]
[1772927283073,0.10726204,67276.0,67263.0,0.01710757]
[1772927283693,0.01798612,67274.0,67262.0,0.07433617]
[1772927283871,0.01798612,67274.0,67254.0,0.07454468]
[1772927283872,0.03284616,67271.0,67255.0,0.07434391]
[1772927284077,0.07441588,67276.0,67256.0,0.00148]
[1772927284078,0.01798612,67268.0,67256.0,0.00148]
[1772927284409,0.03284616,67265.0,67257.0,0.00148]
[1772927284914,0.03284616,67264.0,67258.0,0.00148]
[1772927285292,0.03284616,67264.0,67256.0,0.07434272]
[1772927285498,0.03084616,67263.0,67259.0,0.00148]
[1772927285716,0.02884616,67263.0,67259.0,0.00148]
[1772927287001,0.10318144,67263.0,67257.0,0.07434142]
[1772927287203,0.03284616,67262.0,67260.0,0.00148]
[1772927288821,0.03284616,67262.0,67259.0,0.00148]
[1772927289208,0.03284616,67262.0,67254.0,0.07454286]
[1772927289413,0.03284616,67262.0,67255.0,0.00148]
[1772927289592,0.03284616,67262.0,67254.0,0.07454286]
[1772927289799,0.03284616,67262.0,67255.0,0.00148]
[1772927290200,0.03284616,67262.0,67256.0,0.00148]
[1772927290719,0.03284616,67262.0,67257.0,0.00148]
[1772927293531,0.07433528,67263.0,67257.0,0.07582095]
[1772927293918,0.00022001,67264.0,67257.0,0.07582095]
[1772927294521,0.00022001,67264.0,67257.0,0.07602095]
[1772927296580,0.00022001,67264.0,67257.0,0.07617095]
[1772927308687,0.00148,67274.0,67258.0,0.01699617]
[1772927308886,0.07454628,67271.0,67258.0,0.01699617]
[1772927311047,0.07454628,67271.0,67260.0,0.01699617]
[1772927313024,0.074416,67276.0,67262.0,0.01699617]
[1772927313268,0.074416,67276.0,67264.0,0.01699617]
[1772927314443,0.00022001,67271.0,67264.0,0.01699617]
[1772927315146,0.00022001,67271.0,67265.0,0.07433286]
[1772927315558,0.00022001,67271.0,67266.0,0.00148]
[1772927315986,0.00022001,67271.0,67265.0,0.07433286]
[1772927316298,0.00022001,67271.0,67267.0,0.00148]
[1772927316489,0.00022001,67271.0,67265.0,0.07433286]
[1772927316658,0.00022001,67271.0,67268.0,0.00148]
[1772927317167,0.00022001,67271.0,67265.0,0.07433286]
[1772927317168,0.00022001,67271.0,67269.0,0.00148]
[1772927317487,0.00022001,67271.0,67265.0,0.07433286]
[1772927317695,0.00022001,67271.0,67270.0,0.00148]
[1772927317986,0.00022001,67271.0,67265.0,0.07433286]
[1772927318192,0.00022001,67271.0,67270.0,0.00148]
[1772927318959,0.00022001,67271.0,67265.0,0.07433286]
[1772927319160,0.00022001,67271.0,67270.0,0.00148]
[1772927320512,0.00022001,67271.0,67265.0,0.07433286]
[1772927320692,0.00022001,67271.0,67270.0,0.00148]
[1772927321981,0.00022001,67271.0,67265.0,0.07433286]
[1772927322186,0.00022001,67271.0,67270.0,0.00148]
[1772927323517,0.00022001,67271.0,67265.0,0.07433286]
[1772927323724,0.00022001,67271.0,67270.0,0.00148]
[1772927325925,0.00022001,67271.0,67265.0,0.07433286]
[1772927326128,0.00022001,67271.0,67267.0,0.01934956]
[1772927328361,0.00022001,67271.0,67268.0,0.07432954]
[1772927328563,0.00022001,67271.0,67268.0,0.0921991]
[1772927330467,0.00022001,67271.0,67268.0,0.07432954]
[1772927340418,0.00022001,67271.0,67268.0,0.0921991]
[1772927341110,0.00022001,67271.0,67268.0,0.07432954]
[1772927342635,0.07432186,67275.0,67268.0,0.07432954]
[1772927344529,0.0002447,67275.0,67268.0,0.07432954]
[1772927346443,0.07456653,67275.0,67268.0,0.07432954]
[1772927346823,0.07478654,67275.0,67268.0,0.07432954]
[1772927347408,0.11499927,67275.0,67268.0,0.07432954]
[1772927347657,0.04067744,67275.0,67268.0,0.07432954]
[1772927347837,0.11499928,67275.0,67268.0,0.07432954]
[1772927349154,0.11499954,67275.0,67268.0,0.07432954]
[1772927351169,0.11499941,67275.0,67268.0,0.07432954]
[1772927354558,0.11499941,67275.0,67268.0,0.07452954]
[1772927355259,0.04067744,67275.0,67268.0,0.07452954]
[1772927365569,0.11499925,67275.0,67268.0,0.07452954]
[1772927367130,0.11499963,67275.0,67268.0,0.07452954]
[1772927367334,0.04067744,67275.0,67268.0,0.07452954]
[1772927367668,0.11499933,67275.0,67268.0,0.07452954]
[1772927368041,0.0747866,67275.0,67268.0,0.07452954]
[1772927368198,0.0747866,67275.0,67268.0,0.09125059]
[1772927369240,0.00046471,67275.0,67268.0,0.09125059]
[1772927370345,0.07478705,67275.0,67268.0,0.09125059]
[1772927373533,0.07478705,67275.0,67268.0,0.01692105]
[1772927376933,0.11641926,67275.0,67268.0,0.0002]
[1772927382852,0.07478705,67275.0,67261.0,0.0002]
[1772927383064,0.04163221,67273.0,67262.0,0.00148]
[1772927383265,0.01694574,67270.0,67262.0,0.00148]
[1772927383467,0.04163221,67267.0,67262.0,0.00148]
[1772927383597,0.01694574,67266.0,67262.0,0.00148]
[1772927383805,0.01694574,67264.0,67254.0,0.0002]
[1772927384019,0.04163221,67261.0,67255.0,0.00148]
[1772927384442,0.07433838,67260.0,67256.0,0.00148]
[1772927384884,0.07433838,67260.0,67254.0,0.0002]
[1772927385178,0.07433838,67260.0,67255.0,0.00148]
[1772927385342,0.07433838,67260.0,67254.0,0.0002]
[1772927385543,0.07433838,67260.0,67255.0,0.00148]
[1772927385957,0.07433838,67260.0,67254.0,0.0002]
[1772927385958,0.07433838,67260.0,67256.0,0.00148]
[1772927386284,0.04163221,67259.0,67256.0,0.00148]
[1772927386431,0.04163221,67259.0,67255.0,0.00148]
[1772927386632,0.07433342,67265.0,67252.0,0.07582723]
[1772927386879,0.07433342,67265.0,67257.0,0.0002]
[1772927387935,0.07433342,67265.0,67258.0,0.00148]
[1772927388294,0.04163221,67264.0,67251.0,0.0002]
[1772927388481,0.04163221,67261.0,67252.0,0.00148]
[1772927388686,0.04163221,67260.0,67252.0,0.00148]
[1772927389009,0.0208221,67260.0,67252.0,0.00148]
[1772927389385,0.0208221,67260.0,67251.0,0.0002]
[1772927389614,0.0208221,67260.0,67252.0,0.00148]
[1772927390194,0.04163221,67258.0,67247.0,0.0002]
[1772927390399,0.04163221,67256.0,67247.0,0.00168]
[1772927390529,0.07434391,67255.0,67247.0,0.00168]
[1772927390970,0.07434391,67255.0,67248.0,0.00148]
[1772927391799,0.07434391,67255.0,67248.0,0.00188098]
[1772927393242,0.01694574,67254.0,67249.0,0.00148]
[1772927393443,0.04163221,67253.0,67249.0,0.00148]
[1772927393676,0.04163221,67251.0,67249.0,0.00148]
[1772927393878,0.04163221,67251.0,67243.0,0.0002]
[1772927394078,0.04163221,67251.0,67244.0,0.00148]
[1772927394819,0.11598165,67250.0,67244.0,0.00148]
[1772927396305,0.07434944,67250.0,67244.0,0.00148]
[1772927396467,0.07434944,67250.0,67243.0,0.00148]
[1772927396671,0.01694574,67247.0,67243.0,0.00148]
[1772927396900,0.07435497,67245.0,67243.0,0.00148]
[1772927397911,0.07435497,67245.0,67242.0,0.00148]
[1772927398106,0.07435497,67245.0,67241.0,0.00575]
[1772927398391,0.07435497,67245.0,67242.0,0.00148]
[1772927400127,0.07434944,67250.0,67241.0,0.00168]
[1772927400285,0.04163221,67248.0,67241.0,0.00148]
[1772927400490,0.05857795,67248.0,67241.0,0.00148]
[1772927401838,0.07434944,67250.0,67241.0,0.00148]
[1772927402253,0.07434944,67251.0,67241.0,0.00148]
[1772927402614,0.11867047,67251.0,67241.0,0.00148]
[1772927405966,0.07434944,67251.0,67241.0,0.00148]
[1772927406168,0.04432103,67250.0,67241.0,0.00148]
[1772927407577,0.04432103,67250.0,67241.0,0.00168]
[1772927414250,0.07435054,67249.0,67241.0,0.00168]
[1772927414392,0.07435054,67249.0,67241.0,0.0002]
[1772927414595,0.07435054,67249.0,67242.0,0.00148]
[1772927416542,0.07435054,67249.0,67242.0,0.00248]
[1772927419956,0.07435054,67249.0,67242.0,0.00148]
[1772927421359,0.07457055,67249.0,67242.0,0.00148]
[1772927424207,0.07457055,67249.0,67241.0,0.0002]
[1772927424559,0.07457055,67249.0,67241.0,0.00168]
[1772927425386,0.07457055,67249.0,67241.0,0.0002]
[1772927425715,0.07457055,67249.0,67241.0,0.00168]
[1772927425922,0.07457055,67249.0,67241.0,0.0002]
[1772927426108,0.07457055,67249.0,67241.0,0.00168]
[1772927426310,0.07457055,67249.0,67241.0,0.0002]
[1772927426508,0.07457055,67249.0,67241.0,0.00168]
[1772927427289,0.07457055,67249.0,67241.0,0.0002]
[1772927427487,0.07457055,67249.0,67241.0,0.00168]
[1772927428342,0.07457055,67249.0,67241.0,0.0002]
[1772927428538,0.07457055,67249.0,67241.0,0.00168]
[1772927428938,0.11889158,67249.0,67241.0,0.00168]
[1772927429247,0.11889158,67249.0,67237.0,0.0001205]
[1772927429248,0.01659594,67246.0,67237.0,0.0001205]
[1772927429458,0.05446848,67244.0,67230.0,0.01656167]
[1772927429677,0.05446848,67244.0,67224.0,0.04708331]
[1772927429678,0.01659594,67240.0,67224.0,0.0001205]
[1772927429883,0.01659594,67236.0,67224.0,0.0001205]
[1772927430033,0.04432103,67233.0,67224.0,0.0001205]
[1772927430233,0.00148,67240.0,67217.0,0.01656167]
[1772927430234,0.01659594,67239.0,67217.0,0.01656167]
[1772927430478,0.01659594,67238.0,67218.0,0.00148]
[1772927430624,0.01659594,67236.0,67217.0,0.01656167]
[1772927430826,0.0016005,67240.0,67219.0,0.01644117]
[1772927431056,0.01659594,67235.0,67219.0,0.01644117]
[1772927431461,0.09096307,67234.0,67219.0,0.01644117]
[1772927432845,0.09096307,67234.0,67224.0,0.001]
[1772927433243,0.09096307,67234.0,67219.0,0.01644117]
[1772927433445,0.09096307,67234.0,67219.0,0.01744117]
[1772927433853,0.09096307,67234.0,67219.0,0.01644117]
[1772927434914,0.01659594,67233.0,67219.0,0.01644117]
[1772927435412,0.04780217,67232.0,67213.0,0.06340398]
[1772927435698,0.01659594,67229.0,67220.0,0.00148]
[1772927435908,0.04780217,67229.0,67221.0,0.00148]
[1772927436209,0.01659594,67228.0,67221.0,0.00148]
[1772927436701,0.07436713,67234.0,67221.0,0.00148]
[1772927437025,80.00006737,67495.0,67221.0,0.00148]
[1772927437026,0.07452733,67240.0,67225.0,0.01644117]
[1772927437247,0.07452733,67240.0,67228.0,0.0505952]
[1772927437517,0.07452733,67240.0,67229.0,0.01792117]
[1772927438079,0.01659594,67238.0,67219.0,0.0002]
[1772927438278,0.11877344,67240.0,67220.0,0.00148]
[1772927438279,0.04780217,67235.0,67220.0,0.00148]
[1772927438522,0.01545198,67232.0,67221.0,0.00148]
[1772927438726,0.06325415,67231.0,67221.0,0.00148]
[1772927438900,0.07437156,67230.0,67221.0,0.00148]
[1772927439779,0.07437156,67230.0,67221.0,0.00248]
[1772927440008,0.07437156,67230.0,67221.0,0.00148]
[1772927440425,0.07437156,67230.0,67221.0,0.00248]
[1772927441478,0.07437156,67230.0,67212.0,0.0002]
[1772927441768,0.04780217,67227.0,67215.0,0.00148]
[1772927441947,0.01545198,67225.0,67215.0,0.00148]
[1772927442971,0.01545198,67225.0,67221.0,0.001]
[1772927443132,0.01545198,67228.0,67215.0,0.00148]
[1772927443476,0.01545198,67228.0,67215.0,0.00248]
[1772927443770,0.01545198,67228.0,67215.0,0.00148]
[1772927445581,0.07437487,67227.0,67215.0,0.00148]
[1772927445896,0.07437487,67227.0,67208.0,0.0743959]
[1772927446076,0.04780217,67226.0,67212.0,0.00148]
[1772927446229,0.01545198,67224.0,67212.0,0.00148]
[1772927447591,0.0743793,67223.0,67212.0,0.00148]
[1772927448792,0.0743793,67223.0,67212.0,0.00248]
[1772927448991,0.0743793,67223.0,67212.0,0.00148]
[1772927449351,0.0743793,67223.0,67212.0,0.00248]
[1772927450254,0.0743793,67223.0,67212.0,0.00268]
[1772927453080,0.00037541,67240.0,67212.0,0.0770711]
[1772927453253,0.07437266,67230.0,67214.0,0.01611951]
[1772927453467,0.07437266,67230.0,67217.0,0.0505952]
[1772927453672,0.07452592,67231.0,67219.0,0.0505952]
[1772927453917,0.07452592,67231.0,67222.0,0.01611951]
[1772927454295,0.0001554,67231.0,67222.0,0.01611951]
[1772927455929,0.0001554,67231.0,67222.0,0.01711951]
[1772927456285,0.0001554,67231.0,67222.0,0.01611951]
[1772927456491,0.0001554,67231.0,67223.0,0.01611951]
[1772927456790,0.0001554,67231.0,67224.0,0.00148]
[1772927461606,0.0001554,67231.0,67224.0,0.09169072]
[1772927463660,0.07488652,67240.0,67227.0,0.0158326]
[1772927465049,0.00022001,67231.0,67227.0,0.0158326]
[1772927465237,0.00022001,67231.0,67227.0,0.09020692]
[1772927465432,0.00022001,67231.0,67227.0,0.09120692]
[1772927466301,0.00022001,67231.0,67227.0,0.09020692]
[1772927466463,0.00022001,67231.0,67227.0,0.09120692]
[1772927468604,0.07436532,67236.0,67228.0,0.01568065]
[1772927468893,0.07436474,67237.0,67228.0,0.01568065]
[1772927470673,0.07436474,67237.0,67229.0,0.07437266]
[1772927470889,0.07436474,67237.0,67230.0,0.00148]
[1772927472221,0.07436474,67237.0,67230.0,0.00248]
[1772927472771,0.07436474,67237.0,67230.0,0.01816065]
[1772927474031,0.07458475,67237.0,67230.0,0.01716065]
[1772927474202,0.07458475,67237.0,67230.0,0.01816065]
[1772927477860,0.07458475,67237.0,67230.0,0.09253163]
[1772927478059,0.00052541,67240.0,67230.0,0.09253163]
[1772927478060,0.07488603,67240.0,67230.0,0.07685098]
[1772927478260,0.02141376,67240.0,67231.0,0.01063254]
[1772927480124,0.02141376,67240.0,67232.0,0.07436934]
[1772927482068,0.02141376,67240.0,67232.0,0.07536934]
[1772927483255,0.02163377,67240.0,67232.0,0.07536934]
[1772927483468,0.0001554,67248.0,67233.0,0.0481642]
[1772927483662,0.05196821,67246.0,67233.0,0.00188016]
[1772927483862,0.05196821,67244.0,67233.0,0.00188016]
[1772927484065,0.01587139,67241.0,67233.0,0.00040016]
[1772927484246,0.05196821,67240.0,67234.0,0.07584713]
[1772927485089,0.05196821,67240.0,67234.0,0.07436713]
[1772927485296,0.0678396,67240.0,67235.0,0.00148]
[1772927486495,0.0678396,67240.0,67236.0,0.07436492]
[1772927487327,0.07435837,67242.0,67236.0,0.07436492]
[1772927487532,0.09022767,67244.0,67236.0,0.07436492]
[1772927487945,0.09022767,67244.0,67236.0,0.07536492]
[1772927488234,0.09022767,67244.0,67236.0,0.07436492]
[1772927488540,0.09022767,67244.0,67236.0,0.07536492]
[1772927489093,0.08979552,67244.0,67236.0,0.07536492]
[1772927489608,0.08979552,67244.0,67236.0,0.07436492]
[1772927489944,0.08979552,67244.0,67236.0,0.07536492]
[1772927490347,0.00022001,67249.0,67236.0,0.07436492]
[1772927490508,0.00022001,67249.0,67237.0,0.01149269]
[1772927491238,0.00022001,67249.0,67238.0,0.07436271]
[1772927491427,0.07457057,67249.0,67238.0,0.0858554]
[1772927491634,0.00062001,67250.0,67238.0,0.07436271]
[1772927491832,0.00062001,67250.0,67239.0,0.01147554]
[1772927493979,0.00062001,67250.0,67240.0,0.07436049]
[1772927494143,0.00062001,67250.0,67241.0,0.00148]
[1772927496355,0.00062001,67250.0,67242.0,0.07435828]
[1772927499990,0.07496974,67250.0,67242.0,0.07435828]
[1772927500892,0.00062001,67250.0,67242.0,0.07435828]
[1772927502434,0.0749695,67250.0,67242.0,0.07435828]
[1772927502625,0.00062001,67250.0,67242.0,0.07435828]
[1772927503695,0.07496975,67250.0,67240.0,0.07436049]
[1772927503898,0.04848093,67248.0,67240.0,0.07435949]
[1772927504103,0.0151614,67245.0,67241.0,0.00148]
[1772927504304,0.04848093,67243.0,67237.0,0.03369814]
[1772927504554,0.0151614,67242.0,67238.0,0.00148]
[1772927504946,0.0151614,67242.0,67239.0,0.00148]
[1772927505343,0.0151614,67242.0,67235.0,0.07436381]
[1772927505529,0.0151614,67242.0,67236.0,0.00148]
[1772927505929,0.0151614,67242.0,67237.0,0.00148]
[1772927506366,0.0151614,67242.0,67235.0,0.07436381]
[1772927506578,0.0151614,67242.0,67236.0,0.00148]
[1772927506968,0.0151614,67242.0,67237.0,0.00148]
[1772927507377,0.0151614,67242.0,67235.0,0.07436381]
[1772927507567,0.0151614,67242.0,67237.0,0.07436381]
[1772927507953,0.0151614,67242.0,67239.0,0.0002]
[1772927508693,0.0151614,67242.0,67240.0,0.00148]
[1772927508846,0.07435851,67242.0,67230.0,0.0002]
[1772927509042,0.0151614,67240.0,67237.0,0.00148]
[1772927509250,0.0151614,67239.0,67237.0,0.00148]
[1772927509471,0.0151614,67239.0,67235.0,0.00148]
[1772927509672,0.0151614,67239.0,67235.0,0.07584581]
[1772927509865,0.0151614,67239.0,67235.0,0.07436581]
[1772927510068,0.0151614,67238.0,67233.0,0.07476792]
[1772927510265,0.0151614,67238.0,67234.0,0.00148]
[1772927511072,0.07435689,67244.0,67234.0,0.00148]
[1772927511693,0.07435689,67244.0,67235.0,0.07436602]
[1772927512483,0.08951829,67244.0,67235.0,0.07436602]
[1772927513388,0.0151614,67243.0,67235.0,0.07436602]
[1772927514825,0.07435828,67242.0,67235.0,0.07436602]
[1772927518623,0.0151614,67243.0,67235.0,0.07436602]
[1772927519824,0.08951933,67243.0,67235.0,0.07436602]
[1772927520190,0.08951886,67243.0,67235.0,0.07436602]
[1772927521020,0.08951915,67243.0,67235.0,0.07436602]
[1772927521226,0.015958,67242.0,67235.0,0.07436602]
[1772927524199,0.09031691,67242.0,67235.0,0.07456602]
[1772927524582,0.09053692,67242.0,67235.0,0.07456602]
[1772927529974,0.09053671,67242.0,67235.0,0.07456602]
[1772927530897,0.07457871,67242.0,67235.0,0.0002]
[1772927531077,0.08989588,67242.0,67235.0,0.0002]
[1772927532370,0.01553718,67242.0,67235.0,0.0002]
[1772927536320,0.08989578,67242.0,67235.0,0.0002]
[1772927536522,0.01553718,67242.0,67235.0,0.0002]
[1772927537161,0.08989576,67242.0,67235.0,0.0002]
[1772927538349,0.01553718,67242.0,67235.0,0.0002]
[1772927538852,0.08989582,67242.0,67235.0,0.0002]
[1772927539351,0.00022001,67242.0,67235.0,0.0002]
[1772927546882,0.07457907,67242.0,67235.0,0.0002]
[1772927547278,0.01531927,67241.0,67235.0,0.0002]
[1772927548853,0.04781341,67240.0,67236.0,0.00148]
[1772927549031,0.01531927,67239.0,67236.0,0.00148]
[1772927549751,0.01331927,67239.0,67236.0,0.00148]
[1772927551257,0.01531717,67238.0,67236.0,0.00148]
[1772927553687,0.01531717,67238.0,67236.0,0.0017002]
[1772927553863,0.07436315,67238.0,67236.0,0.0017002]
[1772927554072,0.01531717,67237.0,67236.0,0.0017002]
[1772927555866,0.01531717,67237.0,67236.0,0.0002202]
[1772927556060,0.01531717,67237.0,67236.0,0.0017002]
[1772927556876,0.01531717,67237.0,67236.0,0.0002202]
[1772927557069,0.01531717,67237.0,67236.0,0.0017002]
[1772927557907,0.01531717,67237.0,67236.0,0.0002202]
[1772927559066,0.01531717,67237.0,67236.0,0.0017002]
[1772927560248,0.01531717,67237.0,67236.0,0.0002202]
[1772927560429,0.01531717,67237.0,67236.0,0.0017002]
[1772927561203,0.01531717,67237.0,67236.0,0.0002202]
[1772927561403,0.01531717,67237.0,67236.0,0.0017002]
[1772927561702,0.01531717,67237.0,67236.0,0.0002202]
[1772927561908,0.01531717,67237.0,67236.0,0.0017002]
[1772927562103,0.07457836,67242.0,67236.0,0.07606512]
[1772927562325,0.01473572,67241.0,67236.0,0.07626512]
[1772927562705,0.01495573,67239.0,67236.0,0.07626512]
[1772927564211,0.00022001,67239.0,67236.0,0.07626512]
[1772927567872,0.00022001,67239.0,67236.0,0.0760946]
[1772927571899,0.00022001,67239.0,67236.0,0.07592486]
[1772927572967,0.04467619,67237.0,67229.0,0.07437266]
[1772927573175,0.01473572,67236.0,67229.0,0.07437266]
[1772927575281,0.07436602,67235.0,67228.0,0.07457325]
[1772927576487,0.01473572,67234.0,67228.0,0.07457325]
[1772927580128,0.01473572,67234.0,67228.0,0.07406419]
[1772927580337,0.08910318,67234.0,67228.0,0.07406419]
[1772927585065,0.00017073,67233.0,67228.0,0.07406419]
[1772927586187,0.00017073,67233.0,67228.0,0.07426419]
[1772927591545,0.00017073,67233.0,67224.0,0.00035]
[1772927591750,0.00017073,67233.0,67226.0,0.00148]
[1772927593027,0.00017073,67233.0,67226.0,0.00248]
[1772927593789,0.00017073,67233.0,67228.0,0.0002]
[1772927595938,0.01636298,67233.0,67228.0,0.0002]
[1772927598158,0.11226327,67237.0,67228.0,0.0002]
[1772927598159,0.00022001,67242.0,67231.0,0.04336676]
[1772927598358,0.03149403,67242.0,67234.0,0.01621414]
[1772927598748,0.03149403,67242.0,67232.0,0.00148]
[1772927599552,0.03149403,67242.0,67232.0,0.01769414]
[1772927600973,0.07435718,67243.0,67233.0,0.07436824]
[1772927601851,0.03172813,67243.0,67234.0,0.01621414]
[1772927604131,0.07457829,67244.0,67235.0,0.07436602]
[1772927604341,0.07457829,67244.0,67235.0,0.09058016]
[1772927605979,0.00022001,67243.0,67235.0,0.09058016]
[1772927610517,0.00022001,67243.0,67235.0,0.09158016]
[1772927610736,0.00022001,67243.0,67235.0,0.09058016]
[1772927611242,0.00022001,67243.0,67235.0,0.09158016]
[1772927615232,0.00022001,67243.0,67235.0,0.07536602]
[1772927615470,0.04027246,67242.0,67235.0,0.07536594]
[1772927616493,0.04027246,67242.0,67235.0,0.07436594]
[1772927617090,0.04027246,67242.0,67235.0,0.07536594]
[1772927617294,0.04027246,67242.0,67235.0,0.07436594]
[1772927617656,0.04027246,67242.0,67235.0,0.07536594]
[1772927618260,0.04027246,67242.0,67235.0,0.07548611]
[1772927618651,0.04049247,67242.0,67235.0,0.07548611]
[1772927619385,0.04049247,67242.0,67235.0,0.00012017]
[1772927619567,0.04049247,67242.0,67235.0,0.00112017]
[1772927621411,0.00022001,67242.0,67236.0,0.07436492]
[1772927621640,0.00022001,67242.0,67237.0,0.00148]
[1772927623824,0.00022001,67242.0,67238.0,0.07436271]
[1772927625154,1e-08,67244.0,67238.0,0.07436271]
[1772927625358,0.00022001,67249.0,67239.0,0.01510463]
[1772927625824,0.00022001,67249.0,67240.0,0.07436049]
[1772927628224,0.00022001,67249.0,67240.0,0.08946512]
[1772927632447,0.00022001,67251.0,67240.0,0.08946512]
[1772927632644,0.00022001,67255.0,67240.0,0.08946512]
[1772927632645,0.07456505,67254.0,67241.0,0.01510463]
[1772927632849,0.07456505,67254.0,67242.0,0.00148]
[1772927633048,0.11483751,67254.0,67242.0,0.00148]
[1772927633356,0.04049247,67254.0,67242.0,0.01658463]
[1772927634460,0.11483791,67254.0,67242.0,0.01658463]
[1772927634700,0.00022001,67258.0,67242.0,0.01658463]
[1772927634701,0.000123,67273.0,67243.0,0.07435718]
[1772927634955,0.000123,67273.0,67247.0,0.01510463]
[1772927634956,0.04027246,67264.0,67247.0,0.01510463]
[1772927635457,0.04027246,67264.0,67243.0,0.07435718]
[1772927635458,0.04027246,67264.0,67249.0,0.01510463]
[1772927635754,0.04027246,67264.0,67250.0,0.00148]
[1772927636273,0.04027246,67264.0,67251.0,0.00148]
[1772927636668,0.04027246,67264.0,67250.0,0.07434944]
[1772927636833,0.04027246,67264.0,67252.0,0.00148]
[1772927638134,0.04049247,67264.0,67252.0,0.00148]
[1772927638773,0.04049247,67264.0,67253.0,0.07434612]
[1772927639133,0.04049247,67264.0,67254.0,0.00148]
[1772927639534,0.04049247,67264.0,67255.0,0.00148]
[1772927639938,0.04049247,67264.0,67253.0,0.07534612]
[1772927640156,0.04049247,67264.0,67254.0,0.00148]
[1772927640360,0.01533418,67262.0,67255.0,0.00148]
[1772927640565,0.04027246,67261.0,67255.0,0.00148]
[1772927640778,0.04027246,67261.0,67256.0,0.0743428]
[1772927640984,0.04027246,67261.0,67257.0,0.00148]
[1772927641393,0.0370769,67260.0,67257.0,0.00148]
[1772927642344,0.0370769,67260.0,67256.0,0.0743428]
[1772927642535,0.0370769,67260.0,67258.0,0.00148]
[1772927642902,0.0370769,67260.0,67259.0,0.00148]
[1772927643691,0.0370769,67263.0,67259.0,0.00148]
[1772927643862,0.00022001,67264.0,67259.0,0.00148]
[1772927644089,0.0370769,67263.0,67259.0,0.00148]
[1772927645036,0.0370769,67263.0,67259.0,0.07581873]
[1772927645962,0.00022001,67260.0,67259.0,0.07581873]
[1772927648590,0.03729691,67260.0,67259.0,0.07581873]
[1772927648797,0.01492598,67259.0,67245.0,0.156868]
[1772927648945,0.04762546,67259.0,67246.0,0.07583307]
[1772927650420,0.04762546,67259.0,67246.0,0.07683307]
[1772927650646,0.04762546,67259.0,67246.0,0.07583307]
[1772927650829,0.04762546,67259.0,67246.0,0.09132058]
[1772927651029,0.04762546,67259.0,67247.0,0.10417]
[1772927651232,0.04762546,67259.0,67246.0,0.09132058]
[1772927651594,0.04762546,67259.0,67246.0,0.09232058]
[1772927651917,0.04762546,67259.0,67246.0,0.09132058]
[1772927652450,0.04762546,67259.0,67247.0,0.164166]
[1772927653187,0.04784547,67259.0,67248.0,0.07435165]
[1772927654057,0.04784547,67259.0,67249.0,0.00148]
[1772927654840,0.03291949,67259.0,67249.0,0.00148]
[1772927655974,0.03291949,67259.0,67250.0,0.07434944]
[1772927656948,0.00022001,67264.0,67250.0,0.07434944]
[1772927657315,0.00022001,67264.0,67251.0,0.01548751]
[1772927658068,0.01492598,67262.0,67252.0,0.07434723]
[1772927658270,0.04762546,67262.0,67252.0,0.07434723]
[1772927659373,0.03269948,67261.0,67252.0,0.07434723]
[1772927660124,0.03269948,67261.0,67252.0,0.0002]
[1772927662308,0.01514599,67262.0,67252.0,0.0002]
[1772927663766,0.04784547,67262.0,67252.0,0.0002]
[1772927664725,0.00022001,67262.0,67252.0,0.0002]
[1772927664923,0.04762546,67261.0,67252.0,0.0002]
[1772927672460,0.00022001,67262.0,67252.0,0.0002]
[1772927681503,0.03255536,67262.0,67252.0,0.0002]
[1772927690190,0.03233535,67261.0,67252.0,0.0002]
[1772927695216,0.00022001,67262.0,67252.0,0.0002]